bitfinex-derivatives/quotes_ETHF0:USTF0_20250704
["timestamp","ask_amount","ask_price","bid_price","bid_amount"]
[1751654776731,2.18067,2490.2,2490.1,0.80298]
[1751654776933,2.18067,2490.2,2490.0,0.6997]
[1751654776934,0.80298,2490.1,2490.0,0.6997]
[1751654777122,1.3777,2490.2,2489.7,2.0469]
[1751654777123,1.3777,2490.2,2489.8,0.80307]
[1751654777327,0.80308,2489.9,2489.8,1.50347]
[1751654777929,2.18074,2490.0,2489.9,0.80305]
[1751654778828,0.80305,2489.9,2489.8,1.50346]
[1751654779530,0.80305,2489.9,2489.8,0.7004]
[1751654779929,0.80305,2489.9,2489.8,1.50348]
[1751654781032,0.80305,2489.9,2489.8,0.7004]
[1751654782032,0.80305,2489.9,2489.8,1.50348]
[1751654782437,0.80305,2489.9,2489.8,0.7004]
[1751654783636,0.80305,2489.9,2489.8,1.50348]
[1751654783836,0.80305,2489.9,2489.8,0.7004]
[1751654785139,0.80311,2489.7,2489.6,0.6589]
[1751654785335,0.80311,2489.7,2489.6,1.46204]
[1751654785636,0.80311,2489.7,2489.6,0.6589]
[1751654785837,0.80311,2489.7,2489.6,1.46204]
[1751654786331,0.80319,2489.5,2489.4,0.80318]
[1751654786537,0.80318,2489.5,2489.4,1.46208]
[1751654786939,0.80317,2489.6,2489.5,0.80316]
[1751654787239,0.80318,2489.5,2489.4,1.46209]
[1751654787537,0.80317,2489.6,2489.5,0.80316]
[1751654788328,1.3823,2489.8,2489.4,0.6589]
[1751654788529,2.00722,2490.4,2489.6,2.00786]
[1751654788731,1.04062597,2490.3,2490.2,0.80295]
[1751654789139,0.80295,2490.3,2489.9,2.00758]
[1751654789334,0.80295,2490.3,2490.2,0.80295]
[1751654789535,0.7007,2490.5,2489.7,4.01122]
[1751654789833,0.7007,2490.5,2490.1,0.80297]
[1751654789834,0.80298,2490.2,2490.1,0.80297]
[1751654790729,0.80299,2490.1,2490.0,0.80299]
[1751654791440,0.80298,2490.2,2490.1,0.80297]
[1751654793037,0.80294,2490.3,2490.2,0.80294]
[1751654793236,0.8029,2490.4,2490.3,0.8029]
[1751654794543,0.80294,2490.3,2490.2,0.80293]
[1751654794744,0.80291,2490.4,2490.3,0.8029]
[1751654795245,1.50358,2490.5,2490.4,0.80289]
[1751654795436,0.8029,2490.4,2490.3,0.80289]
[1751654797643,0.80292,2490.3,2490.2,1.51343]
[1751654798446,0.80291,2490.4,2490.3,0.8029]
[1751654799350,0.80291,2490.4,2490.3,1.4826]
[1751654800647,1.85156988,2490.4,2490.3,1.4826]
[1751654806151,1.04865988,2490.4,2490.3,1.4826]
[1751654806356,0.80289,2490.5,2490.4,0.80287]
[1751654806751,1.85206453,2490.5,2490.4,0.80287]
[1751654807853,1.04917453,2490.5,2490.4,0.80287]
[1751654808746,0.80283,2490.7,2490.6,0.8028]
[1751654808954,1.85015033,2490.7,2490.6,0.8028]
[1751654809756,0.80286,2490.6,2490.5,0.80283]
[1751654809950,1.85018033,2490.6,2490.5,0.80283]
[1751654812059,1.04732033,2490.6,2490.5,0.80283]
[1751654812356,0.80279,2490.7,2490.6,0.80282]
[1751654812660,40.8,2490.8,2490.7,0.80279]
[1751654812852,1.84950669,2490.8,2490.7,0.80279]
[1751654813657,1.84948669,2490.8,2490.7,0.80279]
[1751654816859,1.84944778,2490.8,2490.7,0.80279]
[1751654820261,0.80285,2490.6,2490.5,0.80285]
[1751654820563,1.04668778,2490.8,2490.3,2.68696]
[1751654820564,2.23043,2490.7,2490.6,0.80282]
[1751654820759,0.80285,2490.6,2490.5,0.80283]
[1751654820962,0.80289,2490.4,2490.3,1.4826]
[1751654821365,0.80289,2490.4,2490.3,0.6797]
[1751654821867,0.80297,2490.2,2490.1,1.50126]
[1751654823162,0.80297,2490.2,2490.1,1.50128]
[1751654823864,0.80293,2490.3,2490.2,0.80292]
[1751654824169,1.84440754,2490.3,2490.2,0.80292]
[1751654824666,0.80295,2490.2,2490.1,1.50126]
[1751654825162,2.00701,2490.7,2490.1,0.6983]
[1751654825362,0.80288,2490.5,2490.4,0.80286]
[1751654825563,1.04143917,2490.5,2490.4,0.80286]
[1751654825759,0.80285,2490.5,2490.4,0.80286]
[1751654825964,1.84428917,2490.5,2490.4,0.80286]
[1751654828159,0.80293,2490.4,2490.3,0.80289]
[1751654828366,2.19263,2490.4,2490.3,0.80289]
[1751654830569,1.3897,2490.4,2490.3,0.80289]
[1751654831065,2.19259,2490.4,2490.3,0.80289]
[1751654831264,0.80288,2490.5,2490.4,0.80289]
[1751654831463,1.85159038,2490.5,2490.4,0.80289]
[1751654831668,0.80292,2490.4,2490.3,0.8029]
[1751654832963,0.80288,2490.5,2490.4,0.80286]
[1751654833164,3.22903617,2490.5,2490.4,0.80286]
[1751654833360,1.04855617,2490.5,2490.4,0.80286]
[1751654833561,2.18228,2490.8,2490.7,0.80279]
[1751654833756,2.42806751,2490.8,2490.7,0.80279]
[1751654833962,1.04856751,2490.8,2490.7,0.80279]
[1751654834665,0.80272,2491.0,2490.9,0.80268]
[1751654834866,1.86267457,2491.0,2490.9,0.80268]
[1751654836774,0.80275,2490.9,2490.8,0.80273]
[1751654837067,3.23950457,2490.9,2490.8,0.80273]
[1751654837464,2.17955,2490.9,2490.8,0.80273]
[1751654840266,3.22953892,2490.9,2490.8,0.80273]
[1751654840471,2.17955,2490.9,2490.8,0.80273]
[1751654840971,0.80276,2490.8,2490.7,0.80278]
[1751654841175,2.18636,2490.8,2490.7,0.80278]
[1751654842568,0.80275,2490.9,2490.8,0.80276]
[1751654843073,1.85230439,2490.9,2490.8,0.80276]
[1751654844075,0.80275,2490.9,2490.8,0.80276]
[1751654846074,1.48571,2491.0,2490.9,0.80272]
[1751654846275,40.8,2491.1,2491.0,0.80269]
[1751654846475,0.80279,2490.8,2490.7,0.80277]
[1751654847176,3.31035,2491.0,2490.6,1.4612]
[1751654847177,0.80279,2490.7,2490.6,1.4612]
[1751654847679,0.80278,2490.8,2490.7,0.80276]
[1751654849079,0.80279,2490.7,2490.6,0.6584]
[1751654849275,0.80279,2490.7,2490.6,1.46122]
[1751654850680,2.21469,2490.7,2490.6,0.6584]
[1751654850880,2.21469,2490.7,2490.6,1.46122]
[1751654856278,0.80279,2490.7,2490.6,1.46122]
[1751654857484,1.86582822,2490.7,2490.6,1.46122]
[1751654858091,0.80279,2490.7,2490.6,1.46122]
[1751654858492,1.86594493,2490.7,2490.6,1.46122]
[1751654870105,1.86594493,2490.7,2490.6,0.80282]
[1751654872705,0.80282,2490.6,2490.5,1.46013]
[1751654873000,0.80295,2490.3,2490.2,0.80293]
[1751654873305,0.80295,2490.2,2490.1,1.51196]
[1751654873600,0.80295,2490.2,2490.1,0.709]
[1751654873799,0.80298,2490.1,2490.0,0.80299]
[1751654874001,1.07181597,2490.1,2489.9,1.3766]
[1751654874203,0.80301,2490.0,2489.9,2.17962]
[1751654874605,1.88895287,2490.0,2489.9,2.17962]
[1751654875403,0.80308,2489.8,2489.7,0.80309]
[1751654875602,2.00754,2490.0,2489.3,3.20327089]
[1751654875808,0.80315,2489.6,2489.5,0.709]
[1751654876207,1.88848645,2489.6,2489.5,0.709]
[1751654876410,0.80315,2489.6,2489.5,0.709]
[1751654876605,3.37965,2489.7,2489.3,0.80324]
[1751654876801,0.80323,2489.4,2489.3,0.6942]
[1751654878508,0.80323,2489.4,2489.3,1.49744]
[1751654879015,0.8032,2489.5,2489.4,0.8032]
[1751654879214,0.80321,2489.4,2489.3,1.49742]
[1751654879414,0.80321,2489.4,2489.3,1.49744]
[1751654881016,0.80319,2489.5,2489.4,0.80319]
[1751654881813,0.80317,2489.6,2489.5,0.80317]
[1751654882416,0.7008,2489.8,2489.6,0.80314]
[1751654882613,0.80317,2489.6,2489.5,0.80316]
[1751654883015,0.8032,2489.5,2489.4,0.80319]
[1751654883615,2.00772,2489.8,2489.2,0.80325]
[1751654883616,0.80326,2489.3,2489.2,0.80325]
[1751654884618,0.80329,2489.2,2489.1,0.80328]
[1751654885822,0.80329,2489.2,2489.1,0.8033]
[1751654886121,0.80326,2489.3,2489.2,0.80325]
[1751654887017,2.0767,2489.4,2488.9,4.05992]
[1751654887018,0.8033,2489.2,2489.1,0.80328]
[1751654887917,0.80334,2489.1,2489.0,0.80332]
[1751654890523,0.80328,2489.3,2489.2,0.80324]
[1751654890822,1.46763,2489.4,2489.3,0.80324]
[1751654891218,0.80329,2489.3,2489.2,0.80325]
[1751654894229,2.81182,2489.4,2489.3,0.80324]
[1751654899131,0.80328,2489.3,2489.2,0.80325]
[1751654900932,0.80328,2489.3,2489.2,0.80327]
[1751654901128,0.80327,2489.2,2489.1,1.45259]
[1751654902532,0.80327,2489.2,2489.1,1.45261]
[1751654903034,0.80338,2489.0,2488.9,0.80335]
[1751654903232,0.80337,2488.9,2488.8,1.49878]
[1751654903427,0.80337,2488.9,2488.8,1.4988]
[1751654904430,1.91124077,2488.9,2488.8,0.6954]
[1751654905333,0.80337,2488.9,2488.8,1.4988]
[1751654905829,1.91189383,2488.9,2488.8,1.4988]
[1751654906134,1.91189383,2488.9,2488.8,0.6954]
[1751654906724,0.80343,2488.7,2488.6,0.80344]
[1751654906924,3.11696383,2488.9,2488.5,0.7044]
[1751654906925,0.80347,2488.6,2488.5,0.7044]
[1751654907136,1.91185223,2488.6,2488.5,0.7044]
[1751654907435,0.80347,2488.6,2488.5,0.7044]
[1751654907631,0.80346,2488.7,2488.6,0.80344]
[1751654907833,1.91220337,2488.7,2488.6,0.80344]
[1751654908334,0.80347,2488.6,2488.5,1.50787]
[1751654908536,0.80347,2488.6,2488.5,0.7044]
[1751654908731,1.91175148,2488.6,2488.5,0.7044]
[1751654909033,0.80357,2488.4,2488.3,0.80355]
[1751654909232,2.00884,2488.4,2488.0,0.6528]
[1751654909438,0.80366,2488.0,2487.9,1.50808]
[1751654909832,0.80366,2488.0,2487.9,0.7044]
[1751654910037,2.00901,2488.2,2487.8,0.80372]
[1751654910232,0.80368,2488.0,2487.9,0.80369]
[1751654912333,54.11056,2488.8,2487.7,0.6528]
[1751654912635,0.80351,2488.5,2488.4,0.8035]
[1751654912829,0.80349,2488.6,2488.5,0.80348]
[1751654913036,1.10608857,2488.6,2488.5,0.80347]
[1751654913341,3.48806,2488.7,2488.6,0.80347]
[1751654913639,4.59427985,2488.7,2488.6,0.80347]
[1751654915934,1.90967985,2488.7,2488.6,0.80347]
[1751654916437,1.10621985,2488.7,2488.6,0.80347]
[1751654916631,41.60342,2488.8,2488.7,0.80343]
[1751654916831,0.80345,2488.7,2488.6,0.80344]
[1751654918141,2.19225,2488.7,2488.6,0.80344]
[1751654921039,41.60342,2488.8,2488.7,0.80343]
[1751654921246,42.70588628,2488.8,2488.7,0.80343]
[1751654921441,41.90246628,2488.8,2488.7,0.80343]
[1751654921641,0.80338,2488.9,2488.8,0.80337]
[1751654921842,1.90599132,2488.9,2488.8,0.80337]
[1751654922045,0.8034,2488.8,2488.7,1.3997]
[1751654922843,0.8034,2488.8,2488.7,2.20311]
[1751654924243,0.80339,2488.9,2488.8,0.80337]
[1751654924440,0.6741,2489.3,2489.1,0.80327]
[1751654924642,0.80328,2489.3,2489.2,0.80325]
[1751654924844,1.90600298,2489.3,2489.2,0.80325]
[1751654925243,1.90600298,2489.3,2489.1,0.80328]
[1751654925244,0.80331,2489.2,2489.1,0.80328]
[1751654925442,1.90603298,2489.2,2489.1,0.80328]
[1751654925645,0.80338,2489.0,2488.9,0.80334]
[1751654927850,2.92662,2489.1,2489.0,0.80334]
[1751654929051,0.80333,2489.1,2489.0,0.80331]
[1751654934456,1.51822,2489.2,2489.1,0.8033]
[1751654934752,1.90244958,2489.2,2489.1,0.8033]
[1751654935652,0.80327,2489.2,2489.1,0.8033]
[1751654935854,1.9024286,2489.2,2489.1,0.8033]
[1751654936451,0.80327,2489.2,2489.1,0.8033]
[1751654936851,0.80326,2489.3,2489.2,0.80324]
[1751654937154,1.90235119,2489.3,2489.2,0.80324]
[1751654938251,0.80327,2489.2,2489.1,1.49128]
[1751654938649,0.7097,2489.5,2489.1,2.69626]
[1751654938853,0.80319,2489.5,2489.4,0.80317]
[1751654939152,0.80324,2489.4,2489.3,0.80322]
[1751654939857,0.80324,2489.3,2489.2,1.46865]
[1751654940252,0.80327,2489.2,2489.1,0.688]
[1751654940851,0.80337,2488.9,2488.8,0.6723]
[1751654941053,3.37817,2489.1,2488.5,0.6723]
[1751654941253,0.80346,2488.6,2488.5,0.6723]
[1751654941457,0.80346,2488.7,2488.5,0.6723]
[1751654941656,2.17332,2488.8,2488.7,0.80343]
[1751654941956,0.80345,2488.7,2488.6,0.80345]
[1751654942559,0.80346,2488.6,2488.5,1.47577]
[1751654942760,0.80345,2488.7,2488.6,0.80343]
[1751654944575,0.80346,2488.6,2488.5,1.47578]
[1751654947071,3.37843,2488.8,2488.4,0.80351]
[1751654947072,0.80354,2488.5,2488.4,0.80351]
[1751654947274,0.80356,2488.4,2488.3,0.80354]
[1751654949875,0.80359,2488.3,2488.2,0.80357]
[1751654950272,0.80359,2488.2,2488.1,0.8036]
[1751654951268,0.80357,2488.3,2488.2,0.80356]
[1751654952075,0.80362,2488.2,2488.1,0.8036]
[1751654952971,0.80366,2488.1,2488.0,0.80364]
[1751654953174,5.45277,2488.4,2487.7,0.80373]
[1751654953373,0.80372,2487.8,2487.7,0.80373]
[1751654954780,0.80372,2487.8,2487.5,2.68272]
[1751654954781,0.80379,2487.7,2487.6,0.80377]
[1751654955879,0.80372,2487.9,2487.8,0.8037]
[1751654956173,0.80377,2487.7,2487.6,0.80375]
[1751654957080,0.80378,2487.7,2487.6,0.80376]
[1751654957280,3.38706,2488.0,2487.5,0.80379]
[1751654957281,0.80379,2487.6,2487.5,0.80379]
[1751654957478,0.80379,2487.6,2487.5,0.80381]
[1751654957479,0.80381,2487.6,2487.5,0.80381]
[1751654959281,0.80381,2487.6,2487.2,2.662]
[1751654959282,0.80387,2487.4,2487.3,1.46065]
[1751654959783,0.80387,2487.4,2487.3,0.6568]
[1751654960577,0.80387,2487.4,2487.3,1.46068]
[1751654965282,0.80387,2487.4,2487.1,0.80393]
[1751654965490,0.80392,2487.2,2487.1,1.52283]
[1751654966386,2.14149,2487.3,2487.2,0.80392]
[1751654966786,0.80401,2487.0,2486.9,0.80398]
[1751654966987,0.80397,2487.1,2487.0,0.80396]
[1751654967187,0.80394,2487.2,2487.1,0.80392]
[1751654971292,1.3376,2487.3,2487.0,1.46476]
[1751654971293,0.80395,2487.1,2487.0,1.46476]
[1751654971490,0.80394,2487.2,2487.1,0.80392]
[1751654974993,1.4097,2487.4,2487.0,0.6608]
[1751654975189,0.80395,2487.2,2487.1,0.80392]
[1751654975893,0.80395,2487.1,2487.0,0.6608]
[1751654976496,0.80401,2486.9,2486.8,1.45323]
[1751654977494,0.80401,2486.9,2486.8,0.80403]
[1751654979089,0.80405,2486.8,2486.7,1.50825]
[1751654980496,0.80405,2486.8,2486.7,1.50828]
[1751654982501,0.80404,2486.9,2486.8,0.80402]
[1751654982900,0.80405,2486.8,2486.7,0.7042]
[1751654983194,2.01031,2486.6,2485.9,2.01085]
[1751654983400,0.80423,2486.3,2486.2,0.80423]
[1751654983999,0.80427,2486.2,2486.1,0.80426]
[1751654984500,0.80427,2486.1,2486.0,3.44878]
[1751654984699,0.80427,2486.1,2486.0,1.3415]
[1751654985010,0.80427,2486.1,2486.0,2.1458]
[1751654985198,0.80427,2486.1,2486.0,1.3415]
[1751654985501,0.80427,2486.1,2486.0,0.675]
[1751654985698,0.80427,2486.1,2485.7,11.31]
[1751654985699,0.80437,2485.8,2485.7,0.80438]
[1751654985892,0.80436,2485.9,2485.8,0.80435]
[1751654986296,0.80438,2485.8,2485.7,0.80438]
[1751654986502,0.80435,2485.9,2485.8,0.80433]
[1751654986699,0.80432,2486.0,2485.9,0.80431]
[1751654987002,0.80436,2485.9,2485.8,0.80434]
[1751654988400,0.80432,2486.0,2485.9,0.80432]
[1751654988595,1.3956,2486.1,2485.6,0.6613]
[1751654988596,3.40631,2486.1,2485.6,0.6613]
[1751654988801,0.80438,2485.8,2485.7,0.80437]
[1751654989002,2.0515,2486.1,2485.6,0.6613]
[1751654989003,0.8044,2485.7,2485.6,1.46571]
[1751654989599,0.80439,2485.8,2485.7,0.80438]
[1751654990602,2.11336,2485.9,2485.8,0.80437]
[1751654991000,2.11334,2485.9,2485.8,0.80437]
[1751654993110,2.11334,2485.9,2485.7,1.48839]
[1751654993506,2.11336,2485.9,2485.7,1.48839]
[1751654993907,0.80437,2485.8,2485.7,1.48839]
[1751654994312,0.80437,2485.8,2485.7,0.684]
[1751654994606,0.80437,2485.8,2485.7,1.4884]
[1751654994802,0.80437,2485.8,2485.7,0.684]
[1751654997006,0.80437,2485.8,2485.7,1.4884]
[1751654997412,0.80437,2485.8,2485.7,0.684]
[1751654998311,0.80451,2485.5,2485.4,0.80448]
[1751654998504,0.8045,2485.4,2485.3,0.6502]
[1751654998811,2.0003,2485.7,2485.3,0.8045]
[1751654999114,0.80456,2485.3,2485.2,0.80454]
[1751655000510,0.80452,2485.4,2485.3,0.8045]
[1751655000712,41.4668,2485.6,2485.2,2.01139]
[1751655001009,0.8045,2485.5,2485.4,0.80448]
[1751655001406,0.80443,2485.6,2485.5,0.80447]
[1751655001807,0.80442,2485.7,2485.6,0.80441]
[1751655002013,41.60438,2485.8,2485.7,0.8044]
[1751655002316,0.80443,2485.7,2485.6,0.80442]
[1751655003603,42.174,2485.9,2485.8,0.80437]
[1751655003604,1.374,2485.9,2485.8,0.80437]
[1751655003811,1.374,2485.9,2485.6,2.01108]
[1751655003812,0.8043,2486.0,2485.9,0.80434]
[1751655004214,41.6043,2486.0,2485.9,0.80434]
[1751655004516,0.8043,2486.0,2485.9,0.80434]
[1751655005012,54.12569,2486.1,2485.5,1.3486]
[1751655005210,0.80439,2485.8,2485.7,0.80439]
[1751655005413,2.22496,2485.9,2485.8,0.80437]
[1751655007012,41.60429,2486.1,2486.0,0.8043]
[1751655007518,0.80429,2486.1,2486.0,0.8043]
[1751655008315,12.11927,2486.2,2486.1,0.80427]
[1751655008516,1.89889079,2486.2,2486.1,0.80427]
[1751655008715,1.4206,2486.5,2486.0,2.01073]
[1751655009022,1.89887126,2486.4,2486.3,0.80421]
[1751655009515,0.80418,2486.4,2486.3,0.80421]
[1751655009907,0.80423,2486.3,2486.2,0.80422]
[1751655010312,2.01064,2486.2,2485.0,4.00266225]
[1751655010514,0.80435,2485.9,2485.8,0.80434]
[1751655010915,0.80437,2485.8,2485.7,0.80438]
[1751655011412,0.80443,2485.7,2485.6,0.80441]
[1751655011608,2.1422,2486.0,2485.6,0.80441]
[1751655011813,0.80439,2485.8,2485.7,1.48698]
[1751655013119,1.4349,2486.0,2485.7,0.6826]
[1751655013319,0.80433,2486.0,2485.9,0.80434]
[1751655013617,1.09729202,2486.0,2485.9,0.80434]
[1751655013818,0.8043,2486.1,2486.0,0.80429]
[1751655014013,1.90165556,2486.1,2486.0,0.80429]
[1751655014722,1.09735556,2486.1,2486.0,0.80429]
[1751655015024,0.80426,2486.2,2486.1,0.80427]
[1751655015620,1.90131241,2486.2,2486.1,0.80427]
[1751655016017,1.90129241,2486.2,2486.1,0.80427]
[1751655020725,1.09705241,2486.2,2486.1,0.80427]
[1751655021024,1.90129241,2486.2,2486.1,0.80427]
[1751655022219,1.09705241,2486.2,2486.1,0.80427]
[1751655023017,0.80422,2486.3,2486.2,0.80424]
[1751655023223,1.89737672,2486.3,2486.2,0.80424]
[1751655023725,1.09315672,2486.3,2486.2,0.80424]
[1751655024222,0.80412,2486.6,2486.5,0.80414]
[1751655024426,2.01013,2486.8,2486.3,2.01048]
[1751655024427,1.89701049,2486.7,2486.6,0.80408]
[1751655024623,1.89701161,2486.7,2486.6,0.80408]
[1751655025222,0.80415,2486.6,2486.5,0.80412]
[1751655025422,1.89706161,2486.6,2486.5,0.80412]
[1751655026627,1.09291161,2486.6,2486.5,0.80412]
[1751655026822,1.89702161,2486.6,2486.5,0.80412]
[1751655027529,1.09291161,2486.6,2486.5,0.80412]
[1751655027725,1.08414159,2486.6,2486.5,0.80414]
[1751655028122,0.80402,2486.9,2486.8,0.80405]
[1751655028825,2.24045,2487.2,2487.1,0.80395]
[1751655029027,2.24045,2487.2,2486.5,1.3225]
[1751655029028,0.80397,2487.1,2487.0,0.80396]
[1751655029228,0.80404,2486.9,2486.8,0.80402]
[1751655030220,2.21454,2486.9,2486.8,0.80402]
[1751655030831,0.80398,2487.1,2487.0,0.80398]
[1751655031530,2.21448,2487.1,2487.0,0.80398]
[1751655032633,1.4105,2487.1,2487.0,0.80398]
[1751655033129,2.21445,2487.1,2487.0,0.80398]
[1751655033832,41.4957,2487.2,2487.1,0.80395]
[1751655034226,0.80398,2487.1,2487.0,0.80396]
[1751655034423,2.22558,2487.1,2487.0,0.80396]
[1751655034736,0.80407,2486.8,2486.7,0.80405]
[1751655035827,2.11247,2486.8,2486.7,0.80405]
[1751655037633,0.80408,2486.7,2486.6,1.51228]
[1751655038536,0.80408,2486.7,2486.6,1.51231]
[1751655039336,2.11246,2486.8,2486.7,0.80408]
[1751655039635,36.562,2486.9,2486.6,0.7082]
[1751655039636,0.80408,2486.7,2486.6,0.7082]
[1751655041733,0.80419,2486.5,2486.2,2.66283]
[1751655041939,0.80419,2486.5,2486.4,0.80415]
[1751655044537,0.80418,2486.4,2486.3,0.6904]
[1751655044741,0.80418,2486.4,2486.0,57.916]
[1751655044742,0.80421,2486.3,2486.2,0.80421]
[1751655045437,2.19789,2486.4,2486.3,0.80421]
[1751655046441,0.80424,2486.3,2486.2,0.80421]
[1751655048542,2.1979,2486.4,2486.3,0.80421]
[1751655048736,0.8042,2486.4,2486.3,0.80421]
[1751655053046,0.80416,2486.5,2486.4,0.80414]
[1751655053236,3.28985101,2486.5,2486.4,0.80414]
[1751655053441,1.06749101,2486.5,2486.4,0.80414]
[1751655054448,1.87163101,2486.5,2486.4,0.80414]
[1751655054748,1.06749101,2486.5,2486.4,0.80414]
[1751655056450,37.3531,2486.7,2486.6,0.80411]
[1751655056649,38.42067063,2486.7,2486.6,0.80411]
[1751655059448,37.60757063,2486.7,2486.6,0.80411]
[1751655059655,1.06757063,2486.7,2486.6,0.80411]
[1751655060363,0.80403,2486.9,2486.8,0.80401]
[1751655060656,1.87161944,2486.9,2486.8,0.80405]
[1751655060863,1.87161944,2486.9,2486.8,1.45425]
[1751655062562,1.87161944,2486.9,2486.8,0.6502]
[1751655062755,0.80407,2486.8,2486.5,2.01036]
[1751655062962,0.80407,2486.8,2486.7,0.80405]
[1751655063663,2.14174,2486.9,2486.8,0.80405]
[1751655063965,3.21130274,2486.9,2486.8,0.80405]
[1751655065866,1.06956274,2486.9,2486.8,0.80405]
[1751655067267,38.02594,2487.2,2486.9,2.01]
[1751655067468,38.02594,2487.2,2487.1,0.80395]
[1751655067663,39.0947369,2487.2,2487.1,0.80395]
[1751655068767,2.5597369,2487.2,2487.1,0.80395]
[1751655069863,1.0687969,2487.2,2487.1,0.80395]
[1751655070969,38.71827,2487.4,2487.3,0.80388]
[1751655071171,39.7859726,2487.4,2487.3,0.80388]
[1751655071564,2.4551026,2487.4,2487.3,0.80388]
[1751655071870,37.33482,2487.6,2487.5,0.80379]
[1751655072168,38.40245567,2487.6,2487.5,0.80379]
[1751655072368,39.76065567,2487.6,2487.5,0.80379]
[1751655072563,0.80388,2487.4,2487.3,0.80383]
[1751655072969,2.16205,2487.5,2487.4,0.80385]
[1751655073270,0.80388,2487.3,2487.2,0.699]
[1751655073866,2.16208,2487.3,2487.2,0.699]
[1751655074065,2.16208,2487.3,2487.2,1.50289]
[1751655074870,1.3582,2487.3,2487.2,1.50289]
[1751655075169,2.16208,2487.3,2487.2,1.50289]
[1751655075765,1.3582,2487.3,2487.2,1.50289]
[1751655076663,36.526,2487.5,2487.2,0.699]
[1751655076867,37.32985,2487.5,2487.4,0.80385]
[1751655078273,0.80385,2487.5,2487.4,0.80385]
[1751655079472,37.31381,2487.6,2487.5,0.80379]
[1751655079672,38.69811,2487.6,2487.5,0.80379]
[1751655082580,41.4885,2487.8,2487.6,0.80379]
[1751655082773,38.00022,2487.8,2487.7,1.51165]
[1751655082973,39.06531157,2487.8,2487.7,0.7079]
[1751655083175,0.80382,2487.6,2487.5,0.8038]
[1751655083876,2.19922,2487.6,2487.5,0.8038]
[1751655085880,1.3954,2487.6,2487.5,0.8038]
[1751655086277,2.19919,2487.6,2487.5,0.8038]
[1751655090382,0.80385,2487.5,2487.4,0.80383]
[1751655090584,0.80385,2487.4,2487.3,0.6516]
[1751655090780,0.80395,2487.2,2486.8,3.34882]
[1751655090979,0.80395,2487.2,2487.1,0.80391]
[1751655091882,0.80398,2487.1,2487.0,0.80396]
[1751655092980,0.80393,2487.2,2487.1,0.80392]
[1751655093579,0.80398,2487.1,2487.0,0.80395]
[1751655094287,0.80398,2487.1,2486.9,0.704]
[1751655094288,0.80398,2487.0,2486.9,1.50799]
[1751655095577,0.80398,2487.0,2486.9,0.704]
[1751655096087,0.8041,2486.7,2486.4,16.53151223]
[1751655096384,0.8041,2486.7,2486.6,0.80408]
[1751655096886,0.80407,2486.8,2486.7,0.80404]
[1751655099785,0.80404,2486.9,2486.8,0.80401]
[1751655101991,0.80408,2486.7,2486.6,0.6615]
[1751655102389,0.80408,2486.7,2486.6,1.46559]
[1751655104487,0.80408,2486.7,2486.6,0.6615]
[1751655104683,2.17838,2486.7,2486.6,0.6615]
[1751655105191,2.17838,2486.7,2486.6,1.46561]
[1751655105389,2.17838,2486.7,2486.6,0.6615]
[1751655106190,2.17838,2486.7,2486.6,1.46561]
[1751655107184,2.18767,2486.8,2486.7,0.80408]
[1751655108090,1.52347,2486.8,2486.7,0.80408]
[1751655109597,0.80408,2486.7,2486.6,1.46561]
[1751655110095,0.80408,2486.7,2486.6,0.6615]
[1751655110395,0.80408,2486.7,2486.6,1.46561]
[1751655110695,0.80408,2486.7,2486.6,0.6615]
[1751655110896,0.80408,2486.7,2486.6,1.46561]
[1751655111496,0.80408,2486.7,2486.6,0.6615]
[1751655113701,0.80414,2486.5,2486.4,0.6571]
[1751655114699,0.80418,2486.4,2486.3,0.706]
[1751655115393,0.80424,2486.2,2486.1,0.714]
[1751655115594,0.80424,2486.2,2486.1,2.22427]
[1751655117096,0.80424,2486.2,2486.1,1.42]
[1751655117899,4.039,2486.4,2485.9,0.80432]
[1751655118198,4.07373,2486.3,2486.0,0.6706]
[1751655118503,0.80427,2486.1,2486.0,0.6706]
[1751655118797,0.80427,2486.1,2486.0,1.47491]
[1751655119506,0.80424,2486.3,2486.2,0.80422]
[1751655120600,0.80427,2486.2,2486.1,0.80425]
[1751655120801,0.80427,2486.1,2486.0,0.6706]
[1751655122403,0.80427,2486.1,2486.0,1.47491]
[1751655123705,0.80427,2486.1,2486.0,0.6706]
[1751655124502,0.80437,2485.8,2485.7,1.52319]
[1751655124901,3.37147,2486.3,2485.7,2.72981]
[1751655125101,0.80432,2486.1,2486.0,0.80428]
[1751655127107,0.80434,2486.0,2485.9,0.80429]
[1751655127607,0.80422,2486.4,2486.3,0.80417]
[1751655127804,0.80415,2486.6,2486.5,0.80412]
[1751655128010,1.87283673,2486.6,2486.5,0.80412]
[1751655128406,0.80415,2486.6,2486.5,0.80412]
[1751655131310,0.80418,2486.5,2486.4,0.80416]
[1751655131907,0.80418,2486.4,2486.3,1.51169]
[1751655132513,2.01039,2486.5,2486.1,0.80424]
[1751655132720,0.80427,2486.2,2486.1,0.80424]
[1751655133213,1.3677,2486.4,2485.9,0.6596]
[1751655133515,0.80431,2486.1,2486.0,0.80427]
[1751655133812,0.80436,2485.9,2485.8,0.80433]
[1751655134119,0.80433,2486.0,2485.9,0.8043]
[1751655134616,0.80439,2485.9,2485.8,0.80435]
[1751655137319,0.80439,2485.9,2485.5,2.01115]
[1751655137620,3.3395,2486.1,2485.5,2.01115]
[1751655137621,0.80442,2485.8,2485.7,0.80438]